Cogmind - Beta 15 @@@ ROGUE MODE // 2025.07.20 @ 21:57:38 Player: Skysub Result: Destroyed by FK-WL2(R) with Subdweller Machine Gun Performance ------------- Evolutions (0) 0 Regions Visited (2) 400 Robots Destroyed (25) 125 Value Destroyed (873) 873 Prototype IDs (0) 0 Alien Tech Used (0) 0 Bonus (-58) -58 TOTAL SCORE: 1340 Bonus ------- Friendly Fire -58 Cogmind --------- Core Integrity 0/250 Matter 275/300 Energy 125/125 System Corruption 1% Temperature Cool (0) Movement Rolling (145) Ox3 Location -10/Subcaves Parts ------- > --- POWER (1) -------- Light Ion Engine > --- PROPULSION (2) --- Compact Wheel > --- UTILITY (2) ------ High-capacity Storage Unit Makeshift Light Armor Plating > --- WEAPON (2) ------- Makeshift Sword > --- INVENTORY (20) --- Subdweller Power Source Subdweller Power Source Spiked Treads Subdweller Monowheel Structural Scanner Subdweller Optics Subdweller Optics Light Armor Plating Light Armor Plating Scrap Shield Scrap Shield Subdweller Machine Gun Subdweller Machine Gun Barrage Gun Subdweller Shrapnel Launcher Mining Laser Multitool Peak State ------------ > --- POWER ------------ Light Ion Engine > --- PROPULSION ------- Light Treads Compact Wheel > --- UTILITY ---------- High-capacity Storage Unit Makeshift Light Armor Plating > --- WEAPON ----------- Grenade Launcher Makeshift Sword > --- INVENTORY -------- Subdweller Power Source Subdweller Power Source Spiked Treads Subdweller Monowheel Structural Scanner Subdweller Optics Subdweller Optics Light Armor Plating Light Armor Plating Scrap Shield Scrap Shield Subdweller Machine Gun Subdweller Machine Gun Barrage Gun Grenade Launcher Subdweller Shrapnel Launcher Mining Laser Multitool [Rating: 16] Favorites ----------- Power Light Ion Engine Engine Light Ion Engine Propulsion Light Treads Treads Light Treads Wheel Compact Wheel Utility High-capacity Storage Unit Device Structural Scanner Storage High-capacity Storage Unit Protection Light Armor Plating Weapon Light Assault Rifle Energy Gun Medium Laser Ballistic Gun Light Assault Rifle Launcher Grenade Launcher Slashing Weapon Makeshift Sword Build | -11 -10 -10 ------- Run | Yrd Mat Sub Slots Evolved . | . . . Power . | . . . Propulsion . | . . . Utility . | . . . Weapon . | . . . Parts Attached 21 | 6 7 8 Power 2 | 1 . 1 Engine 2 | 1 . 1 Core . | . . . Reactor . | . . . Propulsion 6 | 2 2 2 Treads 3 | 2 1 . Leg . | . . . Wheel 3 | . 1 2 Hover . | . . . Flight . | . . . Utility 5 | 1 3 1 Device 1 | . 1 . Storage 2 | 1 1 . Processor . | . . . Hackware . | . . . Protection 2 | . 1 1 Artifact . | . . . Weapon 8 | 2 2 4 Energy Gun 1 | . 1 . Energy Cannon . | . . . Ballistic Gun 2 | 2 . . Ballistic Cannon . | . . . Launcher 3 | . 1 2 Special Weapon . | . . . Impact Weapon . | . . . Slashing Weapon 2 | . . 2 Piercing Weapon . | . . . Special Melee Weapon . | . . . Unidentified Prototypes . | . . . Parts Lost 10 | . 2 8 Power 1 | . . 1 Propulsion 5 | . 1 4 Utility . | . . . Weapon 4 | . 1 3 Highest Loss Streak 3 | . 1 3 To Critical Strikes . | . . . Average Backups 12 | 2 10 16 Power 1 | . 1 1 Propulsion 2 | 1 2 2 Utility 3 | . 2 5 Weapon 4 | . 4 6 Tool/Special . | . . . Unused Backups 16 | . . 16 Power 2 | . . 2 Propulsion 2 | . . 2 Utility 5 | . . 5 Weapon 6 | . . 6 Tool/Special 1 | . . 1 Average Slot Usage (%) 97 | . 96 98 Engine 13 | . 14 13 Treads 14 | . 15 13 Wheel 13 | . 12 13 Device 10 | . 7 12 Storage 14 | . 14 14 Protection 2 | . 4 1 Energy Gun 5 | . 5 6 Ballistic Gun 8 | . 20 . Launcher 6 | . 2 9 Slashing Weapon 6 | . . 12 Peak Build Rating 16 | 6 9 16 Average Rating 9 | 5 7 11 On Entrance 5 | . 6 9 Naked Turns . | . . . Heaviest Build 53 | 13 53 53 Greatest Support 40 | 40 40 16 Greatest Overweight (x) 4 | . 3 4 Average Overweight (x) 2 | . 2 3 Largest Inventory Capacity 20 | 8 20 20 Average Capacity 18 | 7 19 20 Most Carried 20 | 5 15 20 Average Carried 13 | 3 10 17 Final Capacity 20 | 8 20 20 Final Carried 19 | 5 15 19 Class Distribution -------------------- 100% | Mutant Dominant Class ---------------- Mutant | -10/Materials Mutant | -10/Subcaves Resources | -11 -10 -10 ----------- Run | Yrd Mat Sub Matter Collected 845 | 217 338 290 Remotely . | . . . Salvage Created 856 | 97 528 231 Parts 52 | 9 29 14 Haulers Intercepted . | . . . Recyclers Shooed 3 | 2 1 . Parts Field Recycled . | . . . Retrieved Matter . | . . . Parts Self-Destructed 14 | . . 14 Prevented . | . . . Kills | -11 -10 -10 ------- Run | Yrd Mat Sub Combat Hostiles Destroyed 20 | . 10 10 Melee 2 | . . 2 Guns 9 | . 8 1 AOE 9 | . 2 7 Classes Destroyed 5 | 3 2 . Worker 1 | 1 . . Tunneler 1 | 1 . . Recycler 3 | 1 2 . Grunt 12 | . 8 4 Subdweller 8 | . 2 6 Best Kill Streak 4 | 1 3 4 Combat Bots Only 4 | . 2 4 Max Kills in Single Turn 1 | 1 1 1 Gunslinging . | . . . Exploded 1 | . 1 1 Melee 1 | . . 1 Uniques/NPCs Destroyed . | . . . Combat | -11 -10 -10 -------- Run | Yrd Mat Sub Hostile Shots Fired 109 | . 55 54 Missed 38 | . 20 18 Hits 71 | . 35 36 Projectile 71 | . 35 36 Damage Taken 1286 | . 454 832 Core 250 | . 75 175 Absorbed by Shields . | . . . Core Remaining (%) 100 | 100 . . Volleys Fired 87 | 18 44 25 Largest 2 | 2 2 2 Hottest 80 | 40 80 80 Shots Fired 159 | 36 87 36 Gun 134 | 36 85 13 Cannon . | . . . Launcher 25 | . 2 23 Special . | . . . Kinetic 110 | 36 74 . Thermal 24 | . 11 13 Explosive 25 | . 2 23 Electromagnetic . | . . . Robot Hit Streak 16 | 5 9 16 Robot Miss Streak 7 | 3 7 1 Penetration Max . | . . . Secondary Targets 2 | . 2 . Max Gunslinging Chain 1 | . 1 . Shots Hit Robots 106 | 21 51 34 Core Hits 52 | 6 27 19 Critical Kills . | . . . Critical Parts Destroyed . | . . . Critical Strikes 4 | . 3 1 Burn 4 | . 3 1 Melee Attacks 27 | . . 27 Impact . | . . . Slashing 27 | . . 27 Piercing . | . . . Sneak Attacks . | . . . Combat Hostiles . | . . . Follow-up Attacks . | . . . Damage Inflicted 2726 | 210 785 1731 Guns 868 | 207 549 112 Cannons . | . . . Explosions 1685 | . 210 1475 Melee 144 | . . 144 Ramming 29 | 3 26 . Kinetic 670 | 207 463 . Thermal 198 | . 86 112 Explosive 1685 | . 210 1475 Electromagnetic . | . . . Impact . | . . . Slashing 144 | . . 144 Piercing . | . . . Highest Corruption 1 | . 1 1 Average Corruption 1 | . 1 1 Corruption Purged . | . . . Corruption Blocked . | . . . Effects 12 | . 7 5 Message Errors 2 | . 1 1 Matter Fused 3 | . 2 1 Heat Flow Errors 3 | . 2 1 Energy Discharges 1 | . . 1 Data Loss (minor) 2 | . 1 1 Misfires 1 | . 1 . Overload Shots . | . . . Overflow Damage 13 | . . 13 Projectiles . | . . . Explosions 13 | . . 13 Melee . | . . . Knockbacks . | . . . Impact . | . . . Kinetic . | . . . Secondary . | . . . Self-Inflicted Damage 127 | . 12 115 Shots 8 | . . 8 Rammed 4 | 2 2 . Targets Rammed 4 | 2 2 . Kicked . | . . . Crushed . | . . . Highest Temperature 265 | . 265 247 Average Temperature 62 | . 57 127 Received Heat Transfer 351 | . 234 117 Siege Activations . | . . . Martial Activations . | . . . Shielding Activations . | . . . Robots Disrupted . | . . . Combat Hostiles . | . . . Robots Corrupted . | . . . Combat Hostiles . | . . . Parts Fried . | . . . Impact Corruptions . | . . . Robots Melted . | . . . Combat Hostiles . | . . . Parts Melted . | . . . Heat Transferred 888 | . 481 407 Parts Sabotaged . | . . . Parts Stolen . | . . . Parts Stripped . | . . . Power Chain Reactions . | . . . Alert | -11 -10 -10 ------- Run | Yrd Mat Sub Maximum Alert Level . | . . . Low Security (%) 100 | 100 100 . Level 1 . | . . . Level 2 . | . . . Level 3 . | . . . Level 4 . | . . . Level 5 . | . . . High Security . | . . . Max Security . | . . . Peak Influence 193 | 5 193 . Initial . | . . . Average 37 | . 47 . Influence Increases 596 | 15 406 175 Destroy 0b10 Robot/C 240 | . 160 80 Destroy 0b10 Robot/NC 25 | 15 10 . Destroy Leader 50 | . 30 20 Successful Hack 11 | . 11 . Select Force Hacks 60 | . 60 . Disable Machine 120 | . 120 . Destroy Structure 15 | . 15 . Lose Combat Pursuer 75 | . . 75 Influence Decreases 596 | 15 253 328 Entered New Map 74 | . . 74 Time Decay 463 | 15 233 215 Lost Part 59 | . 20 39 Squads Dispatched 2 | . 2 . Investigation 2 | . 2 . Extermination . | . . . Reinforcement . | . . . Assault . | . . . Garrison . | . . . Intercept . | . . . Searches Triggered . | . . . Construction Impeded . | . . . Haulers Reinforced . | . . . Active Scanning Responses . | . . . Cargo Convoy Interrupts . | . . . Stealth | -11 -10 -10 --------- Run | Yrd Mat Sub Distress Signals 2 | . 2 . Communications Jammed . | . . . Distress Signals . | . . . Times Spotted 32 | . 17 15 Peak Tracking Total 5 | . 5 3 Tactical Retreats 1 | . . 1 Traps | -11 -10 -10 ------- Run | Yrd Mat Sub Traps Triggered 1 | . 1 . Indirectly . | . . . Trap Hack Attempts . | . . . Triggered . | . . . Disarmed . | . . . Reprogrammed . | . . . Reused . | . . . Traps Extracted . | . . . Installed . | . . . Triggered . | . . . Machines | -11 -10 -10 ---------- Run | Yrd Mat Sub Machines Disabled 8 | . 8 . Max in Single Turn 3 | . 3 . Machines Repaired . | . . . Machines Dismantled . | . . . Machines Sabotaged . | . . . Overloaded Fab Kills . | . . . Hacking | -11 -10 -10 --------- Run | Yrd Mat Sub Machines Accessed 6 | . 6 . Terminals 4 | . 4 . Fabricators . | . . . Repair Stations . | . . . Recycling Units 2 | . 2 . Scanalyzers . | . . . Garrison Access . | . . . Total Hacks 14 | . 14 . Successful 8 | . 8 . Failed 6 | . 6 . Catastrophic . | . . . Database Lockouts . | . . . Manual 13 | . 13 . Terminals 11 | . 11 . Fabricators . | . . . Repair Stations . | . . . Recycling Units 3 | . 3 . Scanalyzers . | . . . Garrison Access . | . . . Terminal Hacks 1 | . 1 . Terminal Index 1 | . 1 . Fabricator Hacks . | . . . Repair Station Hacks . | . . . Recycling Unit Hacks 1 | . 1 . Report Inventory 1 | . 1 . Scanalyzer . | . . . Garrison Access Hacks . | . . . Unauthorized Hacks 6 | . 6 . Terminals 4 | . 4 . Botnet 2 | . 2 . Skim 2 | . 2 . Fabricators . | . . . Repair Stations . | . . . Recycling Units 2 | . 2 . Tunnel 2 | . 2 . Scanalyzers . | . . . Garrison Access . | . . . Data Cores Recovered . | . . . Used . | . . . Hacking Detections 4 | . 4 . Full Trace Events . | . . . Feedback Events . | . . . Feedback Blocked . | . . . Robot Schematics Acquired . | . . . Robots Built . | . . . Authchips . | . . . Time . | . . . Total Robot Build Rating . | . . . Part Schematics Acquired . | . . . Parts Built . | . . . Authchips . | . . . Time . | . . . Total Part Build Rating . | . . . Parts Repaired . | . . . Time . | . . . Parts Recycled . | . . . Recycled Matter . | . . . Retrieved Matter . | . . . Retrieved Components . | . . . Parts Scanalyzed . | . . . Part Schematics Acquired . | . . . Parts Damaged . | . . . Bothacking | -11 -10 -10 ------------ Run | Yrd Mat Sub Used RIF Installer . | . . . Robots Hacked . | . . . Non-combat . | . . . Combat . | . . . Robot Hacks Applied . | . . . Relay Couplers Released . | . . . Fabnet Peak Effective % . | . . . Robots Rewired . | . . . Allies Hacked . | . . . Hacks Repelled . | . . . Allies | -11 -10 -10 -------- Run | Yrd Mat Sub Total Allies . | . . . Largest Group . | . . . Highest-Rated Group . | . . . Highest-Rated Ally . | . . . Total Orders . | . . . Ally Attacks . | . . . Total Damage . | . . . Kills . | . . . Allies Corrupted . | . . . Allies Melted . | . . . Intel | -11 -10 -10 ------- Run | Yrd Mat Sub Active Infowar (turns) 1328 | . 391 937 Structural 1328 | . 391 937 Robot Analysis Total . | . . . Derelict Logs Recovered . | . . . Drone Launches . | . . . Drone Recoveries . | . . . Exploration | -11 -10 -10 ------------- Run | Yrd Mat Sub Turns Passed 2022 | 214 770 1038 Spaces Moved 1126 | 94 413 619 Core 3 | 3 . . Treads 135 | 91 44 . Legs . | . . . Wheels 988 | . 369 619 Hover . | . . . Flight . | . . . Fastest Speed 50 | 50 130 130 Average Speed 144 | 156 146 140 Slowest Speed 240 | 160 240 145 Overloaded Moves . | . . . Propulsion Burnouts . | . . . Robots Hopped . | . . . Potential Cave-ins . | . . . Cave-ins Triggered . | . . . Exploration Rate (%) 37 | 6 63 42 Regions Visited 2 Branch Regions 1 Pre-discovered Areas 3 | . 2 1 Known Exits Taken . | . . . Unknown Exits Taken 2 | 1 1 . Scrap Searched 4 | . . 4 Spaces Dug 9 | . . 9 Terrain Destroyed 116 | . 19 97 Melee 1 | . . 1 Projectile . | . . . AOE 115 | . 19 96 Terrain Rammed . | . . . Walls Destroyed . | . . . Machines Disabled . | . . . Actions | -11 -10 -10 --------- Run | Yrd Mat Sub Total 1340 | 124 496 720 Wait 39 | . 21 18 Move 1124 | 93 412 619 Hop . | . . . Pick Up 28 | 5 9 14 Fast Attach 9 | 6 3 . Attach 7 | . 1 6 Detach 1 | . 1 . Swap 9 | . 3 6 Drop 5 | . . 5 Fire 87 | 18 44 25 Melee 27 | . . 27 Ram 2 | . 2 . Kick . | . . . Crush 2 | 2 . . Escape Stasis . | . . . Rewire . | . . . Trap . | . . . Miscellaneous . | . . . Route ------- -11/Scrapyard -10/Materials (discovered 3 exits: [*Mat] / [*Min] / [*Sub]) -10/Subcaves (discovered 1 exit: [*Mat]) History --------- Turn | Location | Event 15 | -11/Scrapyard | Discovered new exit (range 15) 215 | -11/Scrapyard | Entered Materials 318 | -10/Materials | Build established: Mutant 388 | -10/Materials | Discovered new exit (range 6) 643 | -10/Materials | Discovered new exit (range 16) 715 | -10/Materials | Derelicts attacked the area 790 | -10/Materials | Discovered new exit (range 11) 985 | -10/Materials | Entered Subcaves 986 | -10/Subcaves | Approached by a straggling Scientist 995 | -10/Subcaves | Ambushed by Subdwellers from Twisted Machinery 1036 | -10/Subcaves | Discovered new exit (range 15) 1132 | -10/Subcaves | A swath of the cavern ceiling suddenly collapsed 1145 | -10/Subcaves | Core integrity fell below 50% 1237 | -10/Subcaves | Shifting Twisted Machinery released Sub. Optics 1239 | -10/Subcaves | Shifting Twisted Machinery released Mak. Sword 1318 | -10/Subcaves | Disturbed a concealed Subdweller 1849 | -10/Subcaves | Learned location of Zion (-6) 1849 | -10/Subcaves | Met a Zionite searching for "candidates" 2011 | -10/Subcaves | Core integrity fell below 20% 2023 | -10/Subcaves | Destroyed by FK-WL2(R) with Subdweller Machine Gun Last Messages --------------- 01645_ Acquired 4 matter. 01760_ LM-KZ4(z): "She is not going to be happy we haven't found any suitable candidates yet." 01775_ Wheel destroyed. 01784_ Acquired 30 matter. 01785_ MX-4ZL(R) destroyed. 01787_ Acquired 37 matter. 01790_ Acquired Sub. Machine Gun. 01795_ Dropped Med. Laser. 01796_ Dropped Battle Cannon. 01796_ Acquired Scrap Shield. 01815_ Subatomizers dissect the Battle Cannon. 01849_ LM-KZ4(z): "Hey you! It's really dangerous down here, I feel that you could die at any moment. For your health and safety might I suggest a trip to Zion?" World map updated: -6/Zion. 01890_ System corrupted: Component data lost. 02012_ Lgt. Treads destroyed. 02012_ Grenade Launcher destroyed. Map ----- +----------------------------------------------------+ | ?????????????????????????????????????### ?## ## | | ?????????????????????????????????####### ?## ## | | ?????????????????????????????? ####### ? ## # | | ??????????????????????????????##### ? ### ## | | ??????????????????????????????## ?###" ## | | ??????????????????????????????### ?## " "# | | ???????????????????????????????### ####" ## | | ????????????????????????????????## ####" # | | ????????????????????????????????## %##] "" | | ??????????????????????# ??? %& " | | ?????????????????????? ?????????#### &![ "" | | ????????????????????## #????????######## ####"""" | | ????????????????????## #?????????############""# | | ????????????????????# ##?????????????####?###""# | | ????????????????????## ######????###??????###""# | | ????????????????????## ? ##########??????### | | ????????????????????# ? ###### ##??????## # | | ????????????????????## #? # # ???####### # | | ???????????????????### #? ???####### # | | ????????????????###### #? # # # ## # | | ???????????????###### ##? # # # | | ??????????????#### ##? ?????## # # ## | | ?????????## ? ### ### ?????###### # | | ????????### ## ### ### ? #????### | | ????? ## # #### ##????## # | | ????? R @ ####????### # | | ??????# # ##### ########### ##### | | ??????# # <" # ########## ##### | | ??????# ### ## # #$<$## ### ## # ###?? | | ???????#??? #####?# R #<$<"# # ##?? | | ???????????######### # ##<$<# ###?? | | ??????????? # ## # # ##### #########?? | | ??????? # #########??? | | ????????## ### ## ## ######## ###????????? | | ????????###?### ################ ##?????????? | | ??????????????#??##########????###### ##?????????? | | ???????????????????????????????##### ###????????? | | ?????????????????????????????###### ######?????? | | ?????????????????????????????##### #####?????? | | ?????????????????????????????## ##?????? | | ?????????????????????????????## ##?????? | | ?????????????????????????????###### ##?????? | | ?????????????????????????????####### ####?????? | | ?????????????????????????????????###########?????? | | ??????????????????????????????????########???????? | | ?????????????????????????????????????????????????? | | ?????????????????????????????????????????????????? | | ?????????????????????????????????????????????????? | | ?????????????????????????????????????????????????? | | ?????????????????????????????????????????????????? | +----------------------------------------------------+ Best States ------------- Heat Dissipation 25 Energy Generation 10 Energy Capacity 250 Matter Stores 300 Matter Capacity 300 Sight Range 16 Terrain Scan Density 10 Armor Coverage 150 Evasion (%) 40 Recoil Reduction 2 Item Schematics ----------------- None Robot Schematics ------------------ None Fabricated ------------ Nothing Repaired ---------- Nothing Alien Tech Used ----------------- None Achievements -------------- None Challenges ------------ None Game ------ Seed CargoCompositeCompanion Manual? 0 Play Time 00:15:47 Cumulative 165.6 hours Start 2025.07.20 @ 21:44:12 End 2025.07.20 @ 21:57:38 Sessions 1 Manual Loads 0 Difficulty Rogue Special Mode None Game No. 182 Rogue 182 Adventurer 0 Explorer 0 Win Type - Total 3 Types 1/0/0/1/0/0/0/0/0/1 Lore% 67 Gallery% 62 Achievement% 55 Wizard Run 0 Options --------- Layout 1 ASCII 0 Keyboard 1 Movement Arrows Keybinds 0 Fullscreen 1 Font 36/Smallcaps Map View 50x40 Zoom Use 0% Tactical HUD 1 Map Filters NONE Filters NONE Steam 1 RUN: 1fe2e575-b153-4b01-b782-e9432d8bf7a7